[Event "World Senior chT-65 2019"]
[Site "Rhodes"]
[Date "2019.04.23"]
[Round "8.6"]
[White "Vogt, Lothar"]
[Black "Berkovich, Mark A"]
[Result "1/2-1/2"]
[ECO "B19"]
[WhiteElo "2362"]
[BlackElo "2332"]
[Annotator "NA RC"]
[PlyCount "41"]
[EventDate "2019.04.16"]
[EventType "team-tourn"]
[EventCountry "GRE"]
[SourceTitle "playchess.com"]
[Source "ChessBase"]
[SourceQuality "1"]
[WhiteTeam "Germany"]
[BlackTeam "Israel"]
[WhiteTeamCountry "GER"]
[BlackTeamCountry "ISR"]
[TimeControl "40/5400+30:1800+30"]

1. e4 {[%emt 0:00:00]} c6 {[%emt 0:00:00]} 2. d4 {[%emt 0:00:00]} d5 {[%emt 0:00:00]} 3. Nd2 {[%emt 0:00:06]} dxe4 {[%emt 0:00:15]} 4. Nxe4 {[%emt 0:00:02]} Bf5 {[%emt 0:00:08]} 5. Ng3 {[%emt 0:00:13]} Bg6 {[%emt 0:00:05]} 6. h4 {[%emt 0:00:49]} h6 {[%emt 0:00:07]} 7. Nf3 {[%emt 0:00:04]} Nd7 {[%emt 0:00:30]} 8. h5 {[%emt 0:00:05]} Bh7 {[%emt 0:00:04]} 9. Bd3 {[%emt 0:00:06]} Bxd3 {[%emt 0:00:08]} 10. Qxd3 {[%emt 0:00:08]} e6 {[%emt 0:00:11]} 11. Bd2 {[%emt 0:00:24]} Ngf6 {[%emt 0:00:35]} 12. O-O-O {[%emt 0:00:16]} Be7 {[%emt 0:00:10]} 13. Ne4 {[%emt 0:00:15]} Nxe4 {[%emt 0:00:14]} 14. Qxe4 {[%emt 0:00:10]} Nf6 {[%emt 0:00:08]} 15. Qe2 {[%emt 0:00:12]} Qd5 {[%emt 0:00:10]} 16. c4 {[%emt 0:00:37]} Qe4 {[%emt 0:00:20]} 17. Qxe4 {[%emt 0:02:25]} Nxe4 {[%emt 0:00:07]} 18. Be3 {[%emt 0:00:22]} f5 {[%emt 0:00:17]} 19. Nd2 {[%emt 0:00:54]} Nxd2 {[%emt 0:00:30]} 20. Rxd2 {[%emt 0:05:30]} Kf7 {[%emt 0:01:37]} 21. Kc2 {[%emt 0:05:51]} 1/2-1/2

[Event "World Senior chT-65 2019"]
[Site "Rhodes"]
[Date "2019.04.23"]
[Round "8.7"]
[White "Maryasin, Boris"]
[Black "Kiefer, Gerhard"]
[Result "1-0"]
[ECO "B26"]
[WhiteElo "2297"]
[BlackElo "2279"]
[Annotator "NA RC"]
[PlyCount "49"]
[EventDate "2019.04.16"]
[EventType "team-tourn"]
[EventCountry "GRE"]
[SourceTitle "playchess.com"]
[Source "ChessBase"]
[SourceQuality "1"]
[WhiteTeam "Israel"]
[BlackTeam "Germany"]
[WhiteTeamCountry "ISR"]
[BlackTeamCountry "GER"]
[TimeControl "40/5400+30:1800+30"]

1. e4 {[%emt 0:00:00]} c5 {[%emt 0:00:08]} 2. Nc3 {[%emt 0:00:08]} Nc6 {[%emt 0:00:53]} 3. g3 {[%emt 0:00:17]} g6 {[%emt 0:00:11]} 4. Bg2 {[%emt 0:00:08]} Bg7 {[%emt 0:00:06]} 5. d3 {[%emt 0:00:07]} d6 {[%emt 0:00:13]} 6. Be3 {[%emt 0:00:19]} e6 {[%emt 0:00:17]} 7. Qd2 {[%emt 0:00:22]} Rb8 {[%emt 0:00:39]} 8. Nf3 {[%emt 0:00:57]} Nd4 {[%emt 0:00:07]} 9. Bxd4 {[%emt 0:00:38]} cxd4 {[%emt 0:00:07]} 10. Nb5 {[%emt 0:00:10]} e5 {[%emt 0:27:39]} 11. Qb4 {[%emt 0:06:24]} Bf8 {[%emt 0:00:17] B26: Closed Sicilian: 3 g3, lines with early Be3} 12. Nxa7 {[%emt 0:04:35]} Bd7 {[%emt 0:00:56]} 13. Nb5 {[%emt 0:02:14]} Qb6 {[%emt 0:03:17]} 14. a4 {[%emt 0:00:48]} d5 $146 {[%emt 0:16:19]} ({Predecessor:} 14... Ra8 15. O-O Nf6 16. c3 dxc3 17. bxc3 Be7 18. c4 O-O 19. Nxe5 {1-0 (33) Narciso Dublan,M (2467)-Blanco Acevedo,C (2345) Linares 2017}) 15. Qb3 {[%emt 0:06:31]} Qa5+ {[%emt 0:00:23]} 16. Ke2 {[%emt 0:02:48]} dxe4 {[%emt 0:00:41]} 17. Nxe5 {[%emt 0:02:30]} Be6 {[%emt 0:00:47]} 18. Nc4 {[%emt 0:00:23]} Qd8 {[%emt 0:04:25]} 19. Rhe1 {[%emt 0:04:45]} Nf6 {[%emt 0:01:28]} 20. Kf1 {[%emt 0:00:19]} e3 {[%emt 0:00:14]} 21. fxe3 {[%emt 0:02:49]} dxe3 {[%emt 0:01:20]} 22. Qc3 {[%emt 0:03:05]} Bh6 {[%emt 0:25:05]} 23. Qb4 {[%emt 0:04:42]} Ng4 {[%emt 0:03:52]} 24. Nbd6+ $18 {[%emt 0:01:48]} Kd7 {[%emt 0:00:25]} 25. Nb6+ {[%emt 0:01:05]} 1-0

[Event "World Senior chT-65 2019"]
[Site "Rhodes"]
[Date "2019.04.23"]
[Round "8.8"]
[White "Buchal, Stephan"]
[Black "Lederman, Leon"]
[Result "1/2-1/2"]
[ECO "A11"]
[WhiteElo "2283"]
[BlackElo "2281"]
[Annotator "ChessBase"]
[PlyCount "112"]
[EventDate "2019.04.16"]
[EventType "team-tourn"]
[EventCountry "GRE"]
[SourceTitle "playchess.com"]
[Source "ChessBase"]
[SourceQuality "1"]
[WhiteTeam "Germany"]
[BlackTeam "Israel"]
[WhiteTeamCountry "GER"]
[BlackTeamCountry "ISR"]
[TimeControl "40/5400+30:1800+30"]

1. c4 {[%emt 0:00:00]} c6 {[%emt 0:00:00]} 2. g3 {[%emt 0:00:00]} d5 {[%emt 0:00:00]} 3. Nf3 {[%emt 0:00:01]} Nf6 {[%emt 0:00:00]} 4. Bg2 {[%emt 0:00:10]} Bf5 {[%emt 0:01:17]} 5. O-O {[%emt 0:00:59]} e6 {[%emt 0:00:05]} 6. cxd5 {[%emt 0:00:50]} exd5 {[%emt 0:00:14]} 7. d3 {[%emt 0:00:40]} Be7 {[%emt 0:00:05]} 8. Nc3 {[%emt 0:01:58]} O-O {[%emt 0:00:15]} 9. Qb3 {[%emt 0:03:14]} Qb6 {[%emt 0:04:06]} 10. Qc2 {[%emt 0:00:22]} Nbd7 {[%emt 0:01:41]} 11. e4 {[%emt 0:01:40]} dxe4 {[%emt 0:02:29]} 12. dxe4 {[%emt 0:00:10]} Be6 {[%emt 0:00:03]} 13. Be3 {[%emt 0:13:39]} Qa5 {[%emt 0:03:41]} 14. h3 {[%emt 0:06:00]} Rfe8 {[%emt 0:19:06]} 15. b3 {[%emt 0:10:21]} Nf8 {[%emt 0:10:13]} 16. Rad1 {[%emt 0:14:10]} h6 {[%emt 0:02:09]} 17. Nd4 {[%emt 0:03:12]} Bd7 {[%emt 0:00:45]} 18. f4 {[%emt 0:04:19]} Bb4 {[%emt 0:01:19]} 19. Nde2 {[%emt 0:10:50]} Bf5 {[%emt 0:07:23]} 20. Bd4 {[%emt 0:03:45]} Bd7 {[%emt 0:03:12]} 21. e5 {[%emt 0:02:11]} N6h7 {[%emt 0:00:21]} 22. Ne4 {[%emt 0:01:49]} Bf5 {[%emt 0:03:08]} 23. g4 {[%emt 0:01:06]} Bxe4 {[%emt 0:00:11]} 24. Bxe4 {[%emt 0:00:10]} Rad8 {[%emt 0:00:29]} 25. Kg2 {[%emt 0:01:00]} Qa6 {[%emt 0:06:05]} 26. Bb2 {[%emt 0:03:50]} c5 {[%emt 0:02:20]} 27. Nc3 {[%emt 0:04:38]} Bxc3 {[%emt 0:07:09]} 28. Bxc3 {[%emt 0:00:14]} c4 {[%emt 0:01:13]} 29. b4 {[%emt 0:02:21]} b5 {[%emt 0:05:00]} 30. a4 {[%emt 0:01:39]} bxa4 {[%emt 0:02:09]} 31. Ra1 {[%emt 0:00:46]} a3 {[%emt 0:00:27]} 32. Qc1 {[%emt 0:01:20]} Nf6 {[%emt 0:02:57]} 33. Rxa3 {[%emt 0:02:42]} Qb6 {[%emt 0:00:06]} 34. Bf3 {[%emt 0:01:55]} Nd5 {[%emt 0:00:44]} 35. Be1 {[%emt 0:01:20]} Qd4 {[%emt 0:03:56]} 36. Bg3 {[%emt 0:01:32]} Ne6 {[%emt 0:03:15]} 37. f5 {[%emt 0:01:31]} Nef4+ {[%emt 0:00:08]} 38. Kh2 {[%emt 0:00:34]} Nd3 {[%emt 0:00:41]} 39. Qa1 {[%emt 0:00:57]} Ne3 {[%emt 0:05:44]} 40. Rb1 {[%emt 0:00:00]} Nxe5 {[%emt 0:00:00]} 41. Bxe5 {[%emt 0:06:32]} Qxe5+ {[%emt 0:03:16]} 42. Qxe5 {[%emt 0:00:59]} Rxe5 {[%emt 0:00:03]} 43. Kg3 {[%emt 0:04:27]} Re7 {[%emt 0:09:49]} 44. Kf4 {[%emt 0:07:52]} Rd4+ {[%emt 0:00:33]} 45. Kg3 {[%emt 0:00:18]} g5 {[%emt 0:03:37]} 46. fxg6 {[%emt 0:02:43]} fxg6 {[%emt 0:00:16]} 47. Rc1 {[%emt 0:05:36]} g5 {[%emt 0:06:05]} 48. Rca1 {[%emt 0:04:41]} Kf7 {[%emt 0:02:56]} 49. Rxa7 {[%emt 0:01:04]} c3 {[%emt 0:07:13]} 50. Rxe7+ {[%emt 0:02:16]} Kxe7 {[%emt 0:00:05]} 51. Kf2 {[%emt 0:00:34]} Nc4 {[%emt 0:03:46]} 52. Rc1 {[%emt 0:00:28]} Rd2+ {[%emt 0:01:18]} 53. Ke1 {[%emt 0:00:06]} Rd3 {[%emt 0:01:23]} 54. Be2 {[%emt 0:00:16]} Rd4 {[%emt 0:00:47]} 55. Rxc3 {[%emt 0:00:18]} Ne5 {[%emt 0:00:12]} 56. b5 {[%emt 0:00:21]} Rb4 {[%emt 0:00:28]} 1/2-1/2

[Event "World Senior chT-65 2019"]
[Site "Rhodes"]
[Date "2019.04.23"]
[Round "8.9"]
[White "Gudmundsson, Kristjan"]
[Black "Bellin, Robert"]
[Result "0-1"]
[ECO "B57"]
[WhiteElo "2268"]
[BlackElo "2315"]
[Annotator "NA"]
[PlyCount "70"]
[EventDate "2019.04.16"]
[EventType "team-tourn"]
[EventCountry "GRE"]
[SourceTitle "playchess.com"]
[Source "ChessBase"]
[SourceQuality "1"]
[WhiteTeam "Iceland"]
[BlackTeam "England"]
[WhiteTeamCountry "ISL"]
[BlackTeamCountry "ENG"]
[TimeControl "40/5400+30:1800+30"]

1. Nf3 {[%emt 0:00:15]} c5 {[%emt 0:02:32]} 2. e4 {[%emt 0:01:11]} Nc6 {[%emt 0:00:27]} 3. d4 {[%emt 0:00:06]} cxd4 {[%emt 0:00:05]} 4. Nxd4 {[%emt 0:00:03]} Nf6 {[%emt 0:00:08]} 5. Nc3 {[%emt 0:00:06]} d6 {[%emt 0:00:06]} 6. Bc4 {[%emt 0:00:20]} Qb6 {[%emt 0:00:18]} 7. Ndb5 {[%emt 0:01:51]} a6 {[%emt 0:00:12]} 8. Be3 {[%emt 0:01:08]} Qa5 {[%emt 0:00:08]} 9. Nd4 {[%emt 0:00:12]} Ne5 {[%emt 0:01:09]} 10. Bd3 {[%emt 0:09:15] B57: Classical Sicilian: Sozin with 6...Qb6} Nfg4 {[%emt 0:07:06]} 11. Qd2 {[%emt 0:09:01]} Nxe3 {[%emt 0:05:54]} 12. Qxe3 {[%emt 0:00:00]} e6 $146 {[%emt 0:00:16]} ({Predecessor:} 12... g6 13. Nb3 Qd8 14. Nd5 Bg7 15. Qb6 Qxb6 16. Nxb6 Rb8 17. Be2 Nd7 18. Nxc8 Bxb2 19. Nxd6+ exd6 {0-1 (25) Prie,E (2335)-Benjamin,J (2545) Paris 1989}) 13. Nb3 {[%emt 0:00:00]} Qc7 {[%emt 0:02:51]} 14. f4 {[%emt 0:00:00]} Nxd3+ {[%emt 0:02:43]} 15. cxd3 {[%emt 0:00:33]} Bd7 {[%emt 0:01:33]} 16. Rc1 {[%emt 0:02:44]} Qd8 {[%emt 0:03:36]} 17. O-O {[%emt 0:15:57]} Be7 {[%emt 0:00:25]} 18. d4 {[%emt 0:00:40]} O-O {[%emt 0:00:22]} 19. Rfd1 {[%emt 0:04:01]} Qb6 {[%emt 0:06:41]} 20. Rc2 {[%emt 0:17:07]} Rac8 {[%emt 0:03:06]} 21. Re2 {[%emt 0:09:17]} Rfe8 {[%emt 0:08:00]} 22. d5 {[%emt 0:03:18]} Qxe3+ {[%emt 0:05:53]} 23. Rxe3 {[%emt 0:00:03]} e5 {[%emt 0:00:07]} 24. g3 {[%emt 0:06:13]} b5 {[%emt 0:02:31]} 25. a3 {[%emt 0:01:11]} Bd8 {[%emt 0:00:58]} 26. Kg2 {[%emt 0:01:58]} Bb6 {[%emt 0:02:07]} 27. Red3 {[%emt 0:04:32]} f5 {[%emt 0:03:05]} 28. fxe5 {[%emt 0:02:14]} Rxe5 {[%emt 0:01:56]} 29. Nd2 {[%emt 0:01:41]} Rce8 {[%emt 0:03:10]} 30. Re1 {[%emt 0:03:25]} g5 {[%emt 0:07:47]} 31. h3 {[%emt 0:02:06]} h5 $19 {[%emt 0:01:30]} 32. Nf3 {[%emt 0:03:07]} Rxe4 {[%emt 0:01:00]} 33. Nxe4 {[%emt 0:00:53]} fxe4 {[%emt 0:01:07]} 34. Rdd1 {[%emt 0:00:57]} exf3+ {[%emt 0:00:19]} 35. Kxf3 {[%emt 0:00:01]} Rf8+ {[%emt 0:00:48]} 0-1

[Event "World Senior chT-65 2019"]
[Site "Rhodes"]
[Date "2019.04.23"]
[Round "8.10"]
[White "Povah, Nigel E"]
[Black "Viglundsson, Bjorgvin"]
[Result "1/2-1/2"]
[ECO "D02"]
[WhiteElo "2319"]
[BlackElo "2170"]
[Annotator "NA RC"]
[PlyCount "65"]
[EventDate "2019.04.16"]
[EventType "team-tourn"]
[EventCountry "GRE"]
[SourceTitle "playchess.com"]
[Source "ChessBase"]
[SourceQuality "1"]
[WhiteTeam "England"]
[BlackTeam "Iceland"]
[WhiteTeamCountry "ENG"]
[BlackTeamCountry "ISL"]
[TimeControl "40/5400+30:1800+30"]

1. d4 {[%emt 0:00:00]} d5 {[%emt 0:00:09]} 2. Bf4 {[%emt 0:00:00]} Nf6 {[%emt 0:00:12]} 3. e3 {[%emt 0:00:00]} e6 {[%emt 0:00:08]} 4. Nd2 {[%emt 0:00:05]} Bd6 {[%emt 0:00:12]} 5. Bg3 {[%emt 0:00:18]} b6 {[%emt 0:01:55]} 6. Ngf3 {[%emt 0:00:37]} Bb7 {[%emt 0:01:38]} 7. Bb5+ {[%emt 0:04:34]} c6 {[%emt 0:08:21]} 8. Bd3 {[%emt 0:05:11]} c5 {[%emt 0:06:30]} 9. c3 {[%emt 0:00:10]} O-O {[%emt 0:07:08]} 10. Ne5 {[%emt 0:10:50]} Nc6 {[%emt 0:02:37]} 11. f4 {[%emt 0:01:47] D02: 1 d4 d5 2 Nf3 sidelines, including 2...Nf6 3 g3 and 2...Nf6 3 Bf4} (11. O-O Qc7 12. f4 Ne7 13. Qb1 Qc8 14. Bh4 Nf5 15. Bxf5 exf5 16. Bxf6 gxf6 17. Nef3 Qe6 18. Re1 Ba6 19. Nh4 cxd4 20. exd4 {1-0 (28) Korobov,A (2692)-Dominguez Perez,L (2739) Doha 2016}) 11... Ne7 {[%emt 0:00:00]} 12. Qb1 {[%emt 0:00:57]} a5 {[%emt 0:00:00]} 13. Bh4 {[%emt 0:03:17]} Ng6 $146 {[%emt 0:00:00]} ({Predecessor:} 13... Ra7 14. O-O Ng6 15. Bxf6 gxf6 16. Nxg6 fxg6 17. Bxg6 Bc8 18. Bh5 e5 {1-0 (61) Pham,L (2338)-Atalik,E (2422) Baku 2016}) 14. Bxf6 {[%emt 0:01:49]} gxf6 {[%emt 0:00:00]} 15. Nxg6 {[%emt 0:09:17]} fxg6 {[%emt 0:00:05]} 16. O-O {[%emt 0:02:05]} f5 {[%emt 0:01:19]} 17. a4 {[%emt 0:11:50]} Ba6 {[%emt 0:03:16]} 18. Bxa6 {[%emt 0:01:33]} Rxa6 {[%emt 0:00:03]} 19. Qd3 {[%emt 0:01:34]} c4 {[%emt 0:02:00]} 20. Qc2 {[%emt 0:07:48]} Ra8 {[%emt 0:15:12]} 21. b3 {[%emt 0:00:23]} cxb3 {[%emt 0:00:15]} 22. Qxb3 {[%emt 0:00:10]} Rc8 {[%emt 0:00:15]} 23. Rfc1 {[%emt 0:01:17]} Rc6 {[%emt 0:02:15]} 24. Ra2 {[%emt 0:08:28]} Qc7 {[%emt 0:00:52]} 25. Rac2 {[%emt 0:00:59]} Rc8 {[%emt 0:00:50]} (25... g5 $5 {[%cal Rg5f4]} 26. g3 g4 $15) 26. Kf2 {[%emt 0:02:41]} h6 {[%emt 0:07:47]} 27. g3 {[%emt 0:01:55]} Kg7 {[%emt 0:00:14]} 28. Ke2 {[%emt 0:01:11]} Kf6 {[%emt 0:06:02]} 29. Kd3 {[%emt 0:01:21]} g5 {[%emt 0:01:02]} 30. c4 {[%emt 0:05:53]} Bb4 $11 {[%emt 0:03:49]} 31. Nf3 {[%emt 0:02:46]} Qb7 {[%emt 0:08:22]} 32. Ne5 {[%emt 0:10:53]} R6c7 {[%emt 0:00:00]} 33. Rf2 {[%emt 0:01:03] Kxe5 [%emt 00:05:11] Ke4+ [%emt 00:00:18]} 1/2-1/2

[Event "World Senior chT-65 2019"]
[Site "Rhodes"]
[Date "2019.04.23"]
[Round "8.13"]
[White "Herzog, Adolf"]
[Black "Westerinen, Heikki M.J."]
[Result "0-1"]
[ECO "C01"]
[WhiteElo "2337"]
[BlackElo "2286"]
[Annotator "RC"]
[PlyCount "94"]
[EventDate "2019.04.16"]
[EventType "team-tourn"]
[EventCountry "GRE"]
[SourceTitle "playchess.com"]
[Source "ChessBase"]
[SourceQuality "1"]
[WhiteTeam "Austria"]
[BlackTeam "Finland"]
[WhiteTeamCountry "AUT"]
[BlackTeamCountry "FIN"]
[TimeControl "40/5400+30:1800+30"]

1. e4 {[%emt 0:00:00]} e6 {[%emt 0:00:18]} 2. d4 {[%emt 0:00:00]} d5 {[%emt 0:00:11]} 3. Nc3 {[%emt 0:00:00]} Bb4 {[%emt 0:02:42]} 4. exd5 {[%emt 0:00:10]} exd5 {[%emt 0:01:32]} 5. Bd3 {[%emt 0:00:15]} c6 {[%emt 0:04:46]} 6. Nf3 {[%emt 0:10:55]} Ne7 {[%emt 0:08:37]} 7. h3 {[%emt 0:10:56]} O-O {[%emt 0:09:09]} 8. O-O {[%emt 0:00:09]} Bf5 {[%emt 0:01:49]} 9. Re1 {[%emt 0:04:13]} Bxd3 {[%emt 0:04:39]} 10. Qxd3 {[%emt 0:00:59]} Nd7 {[%emt 0:00:51]} 11. Bg5 {[%emt 0:03:02]} f6 {[%emt 0:01:45]} 12. Bd2 {[%emt 0:00:17]} Rf7 {[%emt 0:12:25]} 13. Re2 {[%emt 0:07:12]} Nf8 {[%emt 0:01:41]} 14. h4 {[%emt 0:02:15]} h5 {[%emt 0:05:41]} 15. Rae1 {[%emt 0:01:11]} Qd7 {[%emt 0:07:45]} 16. Na4 {[%emt 0:05:54]} Bd6 {[%emt 0:01:02]} 17. Nc5 {[%emt 0:01:36]} Bxc5 {[%emt 0:00:54]} 18. dxc5 {[%emt 0:00:04]} Neg6 {[%emt 0:03:25]} 19. c4 {[%emt 0:05:55]} Rd8 {[%emt 0:02:46]} 20. cxd5 {[%emt 0:01:51]} Qxd5 {[%emt 0:00:23]} 21. Qc2 {[%emt 0:01:17]} Qxa2 {[%emt 0:04:05]} 22. Re8 {[%emt 0:03:17]} Rxe8 {[%emt 0:00:34]} 23. Rxe8 {[%emt 0:00:06]} Ne7 {[%emt 0:03:51]} 24. Bf4 {[%emt 0:04:43]} Qd5 {[%emt 0:01:58]} 25. Bd6 {[%emt 0:01:40]} Nf5 {[%emt 0:00:37]} 26. Rd8 {[%emt 0:04:23]} Qe6 {[%emt 0:04:15]} 27. Qd3 {[%emt 0:03:45]} Nxd6 {[%emt 0:01:32]} 28. Rxd6 {[%emt 0:00:41]} Rd7 {[%emt 0:00:34]} 29. Qa3 {[%emt 0:01:57]} Rxd6 {[%emt 0:00:39]} 30. cxd6 {[%emt 0:00:06]} a6 {[%emt 0:00:38]} 31. Qb4 {[%emt 0:03:49]} Qf7 {[%emt 0:02:09]} 32. Nd4 {[%emt 0:00:56]} Qd5 {[%emt 0:00:54]} 33. Nb3 {[%emt 0:01:01]} b5 {[%emt 0:01:37]} 34. Nc5 {[%emt 0:05:47]} Qd1+ {[%emt 0:00:26]} 35. Kh2 {[%emt 0:00:46]} Qxd6+ {[%emt 0:00:03]} 36. g3 {[%emt 0:00:03]} a5 {[%emt 0:01:47]} 37. Qc3 {[%emt 0:00:24]} a4 {[%emt 0:01:43]} 38. b4 {[%emt 0:01:58]} axb3 {[%emt 0:02:02]} 39. Qxb3+ {[%emt 0:00:22]} Qd5 {[%emt 0:00:25]} 40. Qe3 {[%emt 0:00:00]} Kf7 {[%emt 0:00:00]} 41. Na6 {[%emt 0:01:32]} Ne6 {[%emt 0:06:11]} 42. Qa7+ {[%emt 0:01:35]} Kg6 {[%emt 0:01:25]} 43. Qe7 {[%emt 0:09:31]} Nd4 {[%emt 0:06:29]} 44. Qe8+ {[%emt 0:00:31]} Kh7 {[%emt 0:00:26]} 45. Nb4 {[%emt 0:01:45]} Qf3 {[%emt 0:01:35]} 46. Nd3 {[%emt 0:01:05]} c5 {[%emt 0:05:01]} 47. Kg1 {[%emt 0:03:33]} Ne2+ {[%emt 0:00:57]} 0-1

[Event "World Senior chT-65 2019"]
[Site "Rhodes"]
[Date "2019.04.23"]
[Round "8.17"]
[White "Faibisovich, Vadim Z"]
[Black "Carlsson, Ingvar"]
[Result "1/2-1/2"]
[ECO "C11"]
[WhiteElo "2302"]
[BlackElo "2119"]
[Annotator "RC"]
[PlyCount "104"]
[EventDate "2019.04.16"]
[EventType "team-tourn"]
[EventCountry "GRE"]
[SourceTitle "playchess.com"]
[Source "ChessBase"]
[SourceQuality "1"]
[WhiteTeam "Russia"]
[BlackTeam "Sweden"]
[WhiteTeamCountry "RUS"]
[BlackTeamCountry "SWE"]
[TimeControl "40/5400+30:1800+30"]

1. e4 {[%emt 4:19:59]} e6 {[%emt 0:00:15]} 2. d4 {[%emt 0:00:35]} d5 {[%emt 0:00:13]} 3. Nc3 {[%emt 0:01:32]} Nf6 {[%emt 0:00:14]} 4. e5 {[%emt 0:03:56]} Nfd7 {[%emt 0:00:10]} 5. f4 {[%emt 0:01:18]} c5 {[%emt 0:00:08]} 6. Nf3 {[%emt 0:00:14]} Nc6 {[%emt 0:00:17]} 7. Be3 {[%emt 0:00:37]} a6 {[%emt 0:00:38]} 8. Qd2 {[%emt 0:04:15]} b5 {[%emt 0:00:31]} 9. dxc5 {[%emt 0:10:46]} Bxc5 {[%emt 0:01:20]} 10. Ne2 {[%emt 0:11:46]} O-O {[%emt 0:14:37]} 11. Ned4 {[%emt 0:03:22]} Qb6 {[%emt 0:04:18]} 12. c3 {[%emt 0:06:18]} b4 {[%emt 0:19:02]} 13. Bd3 {[%emt 0:02:40]} a5 {[%emt 0:02:36]} 14. O-O {[%emt 0:07:49]} Ba6 {[%emt 0:00:20]} 15. Bxa6 {[%emt 0:02:31]} Rxa6 {[%emt 0:02:36]} 16. Bf2 {[%emt 0:07:11]} Qb7 {[%emt 0:12:39]} 17. Rae1 {[%emt 0:02:32]} bxc3 {[%emt 0:23:51]} 18. bxc3 {[%emt 0:00:16]} Nxd4 {[%emt 0:02:03]} 19. Nxd4 {[%emt 0:02:40]} g6 {[%emt 0:04:45]} 20. Qd3 {[%emt 0:04:12]} Rb8 {[%emt 0:01:16]} 21. g4 {[%emt 0:02:45]} Bf8 {[%emt 0:02:52]} 22. Rb1 {[%emt 0:10:11]} Rb6 {[%emt 0:00:23]} 23. Nb3 {[%emt 0:00:44]} Rb5 {[%emt 0:04:30]} 24. Nxa5 {[%emt 0:00:43]} Qa6 {[%emt 0:00:34]} 25. Rxb5 {[%emt 0:00:44]} Rxb5 {[%emt 0:00:37]} 26. Nb3 {[%emt 0:00:27]} Qa4 {[%emt 0:01:32]} 27. Bd4 {[%emt 0:01:37]} Rb8 {[%emt 0:00:49]} 28. Rf2 {[%emt 0:00:35]} Ra8 {[%emt 0:00:22]} 29. f5 {[%emt 0:01:46]} Bg7 {[%emt 0:00:33]} 30. f6 {[%emt 0:01:30]} Bf8 {[%emt 0:00:23]} 31. h4 {[%emt 0:00:59]} Qa6 {[%emt 0:00:50]} 32. Qe3 {[%emt 0:00:55]} h6 {[%emt 0:00:32]} 33. Kg2 {[%emt 0:02:07]} Qc8 {[%emt 0:00:21]} 34. Rd2 {[%emt 0:01:18]} Ra4 {[%emt 0:00:04]} 35. Rb2 {[%emt 0:01:03]} Qa8 {[%emt 0:01:14]} 36. Qe2 {[%emt 0:00:47]} Ba3 {[%emt 0:00:19]} 37. Rc2 {[%emt 0:01:36]} Bf8 {[%emt 0:00:31]} 38. Rb2 {[%emt 0:01:22]} Ba3 {[%emt 0:00:09]} 39. Rd2 {[%emt 0:00:08]} Bf8 {[%emt 0:00:10]} 40. Qb5 {[%emt 0:02:01]} Nb8 {[%emt 0:01:21]} 41. Kh3 {[%emt 0:05:23]} Nc6 {[%emt 0:10:34]} 42. Qe2 {[%emt 0:00:14]} Nb8 {[%emt 0:02:20]} 43. h5 {[%emt 0:08:15]} g5 {[%emt 0:00:38]} 44. Kg2 {[%emt 0:00:28]} Na6 {[%emt 0:01:30]} 45. Qb5 {[%emt 0:04:03]} Nb8 {[%emt 0:02:01]} 46. Kf3 {[%emt 0:02:31]} Nc6 {[%emt 0:00:31]} 47. Qe2 {[%emt 0:00:41]} Nb8 {[%emt 0:01:18]} 48. Kf2 {[%emt 0:00:37]} Na6 {[%emt 0:00:20]} 49. Ke1 {[%emt 0:01:29]} Nc7 {[%emt 0:01:48]} 50. Rb2 {[%emt 0:01:16]} Ba3 {[%emt 0:00:42]} 51. Rb1 {[%emt 0:01:27]} Bf8 {[%emt 0:00:08]} 52. Rb2 {[%emt 0:00:50]} Ba3 {[%emt 0:00:07]} 1/2-1/2

[Event "World Senior chT-65 2019"]
[Site "Rhodes"]
[Date "2019.04.23"]
[Round "8.18"]
[White "Nordstrom, Felix"]
[Black "Karasev, Vladimir I"]
[Result "0-1"]
[ECO "A41"]
[WhiteElo "2044"]
[BlackElo "2281"]
[Annotator "RC"]
[PlyCount "106"]
[EventDate "2019.04.16"]
[EventType "team-tourn"]
[EventCountry "GRE"]
[SourceTitle "playchess.com"]
[Source "ChessBase"]
[SourceQuality "1"]
[WhiteTeam "Sweden"]
[BlackTeam "Russia"]
[WhiteTeamCountry "SWE"]
[BlackTeamCountry "RUS"]
[TimeControl "40/5400+30:1800+30"]

1. d4 {[%emt 0:00:38]} g6 {[%emt 0:00:13]} 2. e4 {[%emt 0:00:00]} Bg7 {[%emt 0:00:03]} 3. c4 {[%emt 0:00:45]} d6 {[%emt 0:00:27]} 4. Nf3 {[%emt 0:01:21]} Bg4 {[%emt 0:02:37]} 5. Be2 {[%emt 0:02:20]} Nc6 {[%emt 0:02:59]} 6. Nbd2 {[%emt 0:11:27]} Nf6 {[%emt 0:02:30]} 7. d5 {[%emt 0:02:30]} Nb8 {[%emt 0:02:32]} 8. O-O {[%emt 0:02:19]} O-O {[%emt 0:01:06]} 9. Ne1 {[%emt 0:04:27]} Bxe2 {[%emt 0:00:20]} 10. Qxe2 {[%emt 0:00:02]} c6 {[%emt 0:00:23]} 11. Nd3 {[%emt 0:03:42]} b5 {[%emt 0:01:58]} 12. dxc6 {[%emt 0:02:18]} Nxc6 {[%emt 0:00:35]} 13. cxb5 {[%emt 0:01:34]} Nd4 {[%emt 0:00:09]} 14. Qd1 {[%emt 0:00:47]} Nxb5 {[%emt 0:01:03]} 15. Qa4 {[%emt 0:04:30]} a6 {[%emt 0:06:41]} 16. Nf3 {[%emt 0:01:35]} Qd7 {[%emt 0:07:11]} 17. Bd2 {[%emt 0:06:18]} Qb7 {[%emt 0:08:22]} 18. Rfe1 {[%emt 0:02:07]} Rfc8 {[%emt 0:02:12]} 19. Rac1 {[%emt 0:01:27]} Rxc1 {[%emt 0:00:23]} 20. Bxc1 {[%emt 0:01:38]} Rc8 {[%emt 0:02:36]} 21. h3 {[%emt 0:04:32]} Nd7 {[%emt 0:03:29]} 22. Qb3 {[%emt 0:03:41]} Qc7 {[%emt 0:20:56]} 23. Bg5 {[%emt 0:07:03]} Nc5 {[%emt 0:02:06]} 24. Nxc5 {[%emt 0:03:18]} dxc5 {[%emt 0:04:34]} 25. Rc1 {[%emt 0:05:29]} c4 {[%emt 0:02:47]} 26. Qc2 {[%emt 0:02:27]} Nd4 {[%emt 0:00:00]} 27. Nxd4 {[%emt 0:00:57]} Bxd4 {[%emt 0:00:00]} 28. Rd1 {[%emt 0:08:58]} Qb6 {[%emt 0:07:48]} 29. Bc1 {[%emt 0:05:06]} e5 {[%emt 0:00:40]} 30. Re1 {[%emt 0:00:42]} Qa5 {[%emt 0:00:44]} 31. Re2 {[%emt 0:01:56]} Qxa2 {[%emt 0:00:16]} 32. Kf1 {[%emt 0:02:55]} Qb3 {[%emt 0:01:13]} 33. Ke1 {[%emt 0:01:25]} a5 {[%emt 0:01:12]} 34. f3 {[%emt 0:02:47]} a4 {[%emt 0:00:28]} 35. Kd1 {[%emt 0:05:03]} Qb4 {[%emt 0:05:24]} 36. Bg5 {[%emt 0:02:22]} c3 {[%emt 0:01:37]} 37. bxc3 {[%emt 0:01:53]} Rxc3 {[%emt 0:00:35]} 38. Bd2 {[%emt 0:00:27]} Rxc2 {[%emt 0:02:00]} 39. Bxb4 {[%emt 0:00:00]} Rc4 40. Bd6 {[%emt 0:02:42]} Rc6 {[%emt 0:01:19]} 41. Ba3 {[%emt 0:08:32]} f5 {[%emt 0:07:04]} 42. exf5 {[%emt 0:00:18]} gxf5 {[%emt 0:00:27]} 43. Bb2 {[%emt 0:05:15]} Bxb2 {[%emt 0:04:52]} 44. Rxb2 {[%emt 0:00:00]} Ra6 {[%emt 0:01:30]} 45. Kc2 {[%emt 0:00:00]} a3 46. Rb8+ {[%emt 0:01:58]} Kf7 {[%emt 0:00:42]} 47. Kb1 {[%emt 0:00:00]} e4 48. fxe4 {[%emt 0:09:11]} fxe4 {[%emt 0:05:49]} 49. Rh8 {[%emt 0:04:51]} h6 {[%emt 0:00:22]} 50. Ka2 {[%emt 0:01:47]} Re6 {[%emt 0:01:58]} 51. Rd8 {[%emt 0:00:00]} e3 {[%emt 0:04:40]} 52. Rd1 {[%emt 0:00:11]} e2 {[%emt 0:00:03]} 53. Re1 {[%emt 0:00:00]} Re3 {[%emt 0:00:45]} 0-1